bitfinex/quotes_BTCUSD_20211001
["timestamp","ask_amount","ask_price","bid_price","bid_amount"]
[1633086894262,0.045387,47309.0,47297.0,0.03715877]
[1633086894454,0.01105154,47310.0,47297.0,0.03715877]
[1633086894455,0.31569515,47308.0,47298.0,0.317101]
[1633086894655,7.248e-05,47302.0,47298.0,0.32389131]
[1633086895355,7.248e-05,47302.0,47299.0,0.1757748]
[1633086895556,7.248e-05,47302.0,47299.0,0.00618742]
[1633086895755,7.248e-05,47302.0,47301.0,0.211405]
[1633086895957,7.248e-05,47302.0,47301.0,0.161704]
[1633086896755,7.248e-05,47302.0,47301.0,0.203704]
[1633086897157,7.248e-05,47302.0,47301.0,0.21018555]
[1633086898157,7.248e-05,47302.0,47301.0,0.161704]
[1633086898758,7.248e-05,47302.0,47301.0,0.203704]
[1633086899159,0.0098356,47302.0,47301.0,0.21116038]
[1633086899360,0.0098356,47302.0,47301.0,0.43090738]
[1633086899557,0.0098356,47302.0,47301.0,0.44090738]
[1633086899757,0.0098356,47302.0,47301.0,0.433451]
[1633086899958,0.0048356,47302.0,47301.0,1.933451]
[1633086900157,0.0048356,47302.0,47301.0,0.433451]
[1633086900657,0.24685293,47306.0,47301.0,0.433451]
[1633086900958,0.24685293,47306.0,47301.0,0.213704]
[1633086901858,0.24685293,47306.0,47301.0,0.208704]
[1633086902256,0.24685293,47306.0,47301.0,0.166704]
[1633086902657,0.00129596,47310.0,47301.0,0.166704]
[1633086902863,0.00129596,47310.0,47301.0,0.204704]
[1633086903264,0.00129596,47310.0,47304.0,0.07176373]
[1633086903457,0.00129596,47310.0,47302.0,0.00658893]
[1633086903458,0.089327,47309.0,47302.0,0.00658893]
[1633086903658,0.19432181,47306.0,47303.0,0.00690859]
[1633086903859,0.31602947,47312.0,47303.0,0.00690859]
[1633086904057,0.00165419,47313.0,47306.0,0.11526055]
[1633086904261,0.0004,47313.0,47307.0,0.30377606]
[1633086904458,0.0004,47313.0,47304.0,0.00127065]
[1633086904459,6.04e-05,47307.0,47304.0,0.00739589]
[1633086904659,0.0004,47313.0,47306.0,1.5]
[1633086904861,0.0004,47313.0,47308.0,2.36373797]
[1633086905059,0.0004,47313.0,47311.0,0.07310683]
[1633086905259,0.0004,47313.0,47312.0,0.29839365]
[1633086905464,6.039e-05,47312.0,47311.0,0.08085204]
[1633086905661,6.039e-05,47312.0,47311.0,0.52379904]
[1633086905859,6.039e-05,47312.0,47311.0,0.84080904]
[1633086906061,6.039e-05,47312.0,47311.0,0.61760904]
[1633086906860,6.039e-05,47312.0,47311.0,0.65360904]
[1633086907060,6.039e-05,47312.0,47311.0,0.26349221]
[1633086908062,6.039e-05,47312.0,47311.0,1.19354875]
[1633086908261,6.039e-05,47312.0,47311.0,0.90910384]
[1633086908462,6.039e-05,47312.0,47311.0,0.9192015]
[1633086908875,6.039e-05,47312.0,47311.0,0.9582015]
[1633086909464,6.039e-05,47312.0,47311.0,0.95869112]
[1633086909662,0.0006,47327.0,47311.0,1.45869112]
[1633086909864,0.0006,47327.0,47321.0,0.00892077]
[1633086910065,0.0006,47327.0,47321.0,0.24726777]
[1633086910263,0.00052075,47322.0,47321.0,0.02752077]
[1633086910464,0.00052075,47322.0,47321.0,0.00892077]
[1633086910664,0.31756575,47322.0,47321.0,0.00892077]
[1633086910865,0.74072151,47322.0,47321.0,0.05292077]
[1633086911066,0.09084775,47322.0,47321.0,0.05292077]
[1633086911465,0.33606795,47322.0,47321.0,0.05292077]
[1633086912065,0.33735398,47322.0,47321.0,0.05292077]
[1633086912264,0.33635398,47322.0,47321.0,0.00892077]
[1633086912671,0.87189767,47322.0,47321.0,0.00892077]
[1633086912865,0.37064409,47322.0,47321.0,0.01992077]
[1633086914268,0.37064409,47322.0,47321.0,0.00892077]
[1633086914466,0.33764409,47322.0,47321.0,0.00892077]
[1633086914968,0.36064409,47322.0,47321.0,0.02941039]
[1633086915167,0.36064409,47322.0,47321.0,0.03019128]
[1633086915769,0.36509755,47322.0,47321.0,0.03019128]
[1633086916167,0.36509755,47322.0,47321.0,0.01019128]
[1633086916368,0.33709755,47322.0,47321.0,0.01019128]
[1633086916771,1.5,47321.0,47309.0,0.20028]
[1633086916971,0.00121715,47310.0,47301.0,0.07101668]
[1633086917178,0.00123082,47306.0,47304.0,0.09865515]
[1633086917370,0.00123117,47315.0,47304.0,0.09865515]
[1633086917571,0.00127683,47310.0,47304.0,0.09865515]
[1633086917827,0.23837214,47313.0,47309.0,0.00013286]
[1633086917971,0.08742264,47312.0,47309.0,0.00013286]
[1633086918170,0.08742264,47312.0,47301.0,0.01]
[1633086918171,0.086147,47310.0,47301.0,0.01]
[1633086918572,0.509024,47310.0,47309.0,0.00013286]
[1633086918770,0.604687,47310.0,47309.0,0.00013286]
[1633086918969,0.632687,47310.0,47309.0,0.00013286]
[1633086919170,0.29099448,47304.0,47301.0,0.04073286]
[1633086919570,0.086147,47303.0,47301.0,0.04073286]
[1633086919969,0.23008643,47302.0,47301.0,0.04073286]
[1633086920169,0.23008643,47302.0,47301.0,0.00973286]
[1633086920373,0.31623343,47302.0,47301.0,0.00982951]
[1633086920971,0.25108643,47302.0,47301.0,0.04082951]
[1633086921173,0.81066908,47302.0,47301.0,0.04082951]
[1633086921473,0.81066908,47302.0,47289.0,0.06104462]
[1633086921474,1.45,47301.0,47289.0,0.06104462]
[1633086921671,1.45,47301.0,47288.0,0.0610452]
[1633086921672,0.104747,47300.0,47288.0,0.0610452]
[1633086921872,0.104747,47300.0,47285.0,0.06105187]
[1633086921873,0.0012544,47289.0,47285.0,0.06105187]
[1633086922074,0.36579795,47285.0,47283.0,0.06105332]
[1633086922272,0.34763753,47284.0,47281.0,0.06105458]
[1633086922473,0.00123937,47282.0,47279.0,0.06104549]
[1633086922672,0.00123937,47282.0,47274.0,0.06105239]
[1633086922872,0.00128921,47275.0,47273.0,0.06105436]
[1633086923072,0.00128921,47275.0,47272.0,0.27254389]
[1633086923273,0.00128921,47275.0,47274.0,0.00032636]
[1633086923474,0.26452965,47275.0,47274.0,0.00032636]
[1633086923674,0.00129196,47283.0,47274.0,0.00032636]
[1633086923873,0.00129196,47283.0,47274.0,0.00684593]
[1633086924072,0.00129196,47283.0,47282.0,0.00022962]
[1633086924273,0.18453142,47283.0,47282.0,0.00022962]
[1633086924675,0.3524582,47283.0,47282.0,0.00022962]
[1633086924874,0.57277845,47283.0,47282.0,0.01922962]
[1633086925074,0.90227658,47283.0,47282.0,0.01922962]
[1633086925274,0.03125472,47283.0,47282.0,0.01922962]
[1633086925474,0.0312931,47283.0,47282.0,0.01922962]
[1633086926073,0.7312931,47283.0,47282.0,0.00922962]
[1633086926278,0.83961628,47283.0,47274.0,0.01153912]
[1633086926476,0.00122109,47275.0,47274.0,0.01153912]
[1633086926676,0.00122109,47275.0,47264.0,0.0004]
[1633086926875,0.00122109,47275.0,47274.0,9.671e-05]
[1633086927476,0.29410198,47275.0,47274.0,0.20178532]
[1633086927677,0.58265529,47283.0,47276.0,0.11942219]
[1633086927877,0.31421092,47286.0,47276.0,0.11942219]
[1633086927878,0.00129641,47292.0,47288.0,0.09883248]
[1633086928076,0.00124711,47306.0,47300.0,0.09861304]
[1633086928281,3.9365,47313.0,47301.0,0.34003885]
[1633086928282,0.2499,47310.0,47301.0,0.34003885]
[1633086928479,0.2499,47310.0,47296.0,0.00129292]
[1633086928678,0.19314835,47308.0,47303.0,0.21981351]
[1633086928879,0.2679,47310.0,47304.0,0.3106731]
[1633086929081,0.26918331,47310.0,47304.0,0.3106731]
[1633086929278,0.26918331,47310.0,47298.0,0.34366667]
[1633086929480,0.26918331,47310.0,47298.0,0.36226667]
[1633086929680,0.01928331,47310.0,47298.0,0.36226667]
[1633086929937,0.1887014,47309.0,47304.0,0.23779719]
[1633086930135,0.1887014,47309.0,47303.0,0.30186117]
[1633086930339,0.00025367,47305.0,47304.0,0.0186]
[1633086930937,0.027,47305.0,47304.0,0.0486]
[1633086931736,0.027,47305.0,47304.0,0.35056594]
[1633086932336,0.24822607,47308.0,47304.0,0.32056594]
[1633086932540,0.40214877,47310.0,47304.0,0.32056594]
[1633086932938,0.40214877,47310.0,47304.0,0.33756594]
[1633086932939,0.028,47308.0,47304.0,0.33756594]
[1633086933938,0.028,47308.0,47305.0,0.05394]
[1633086934139,0.028,47308.0,47305.0,0.07254]
[1633086934942,0.045,47308.0,47305.0,0.07254]
[1633086935147,0.19795766,47314.0,47305.0,0.07254]
[1633086935344,0.2232,47310.0,47305.0,0.07254]
[1633086935547,0.19795766,47314.0,47305.0,0.07254]
[1633086936143,0.50923675,47310.0,47306.0,0.22817987]
[1633086936343,0.19795766,47314.0,47307.0,0.05394]
[1633086936744,0.19795766,47314.0,47308.0,0.28061]
[1633086936944,0.035,47314.0,47309.0,0.05394]
[1633086937144,0.2232,47312.0,47309.0,0.05394]
[1633086937347,6.039e-05,47310.0,47309.0,0.05394]
[1633086938945,0.03406039,47310.0,47309.0,0.05394]
[1633086940548,6.039e-05,47310.0,47309.0,0.05394]
[1633086940948,0.03706039,47310.0,47309.0,0.05394]
[1633086941954,0.03206039,47310.0,47309.0,0.05394]
[1633086942151,0.27211422,47310.0,47309.0,0.05394]
[1633086942352,0.81245922,47310.0,47309.0,0.05394]
[1633086942552,0.55719883,47310.0,47309.0,0.05394]
[1633086942953,0.59019883,47310.0,47309.0,0.05394]
[1633086943353,0.81339883,47310.0,47309.0,0.05394]
[1633086943551,0.59019883,47310.0,47309.0,0.05394]
[1633086943954,0.27305383,47310.0,47309.0,0.05394]
[1633086944352,0.24005383,47310.0,47309.0,0.05394]
[1633086944953,0.27205383,47310.0,47309.0,0.05394]
[1633086946156,1.32205383,47310.0,47309.0,0.05194]
[1633086946354,0.27205383,47310.0,47309.0,0.05194]
[1633086946554,0.24005383,47310.0,47309.0,0.05194]
[1633086946956,0.27305383,47310.0,47299.0,0.05317155]
[1633086947156,0.75565396,47315.0,47299.0,0.05317155]
[1633086947157,0.0006,47323.0,47312.0,1.01735191]
[1633086947355,0.0006,47323.0,47322.0,0.0012272]
[1633086947756,0.00075698,47323.0,47322.0,0.35699252]
[1633086947955,0.00075698,47323.0,47322.0,0.62875452]
[1633086948157,0.00075698,47323.0,47322.0,0.70753036]
[1633086948954,0.00075698,47323.0,47322.0,0.73453036]
[1633086948955,0.023,47323.0,47322.0,0.73453036]
[1633086949356,0.0004,47324.0,47322.0,0.65452732]
[1633086949556,0.0004,47324.0,47323.0,0.49753256]
[1633086949754,0.0004,47324.0,47323.0,0.54947256]
[1633086949956,0.0004,47324.0,47323.0,0.55074722]
[1633086950660,0.0004,47324.0,47323.0,0.271802]
[1633086950858,0.0004,47324.0,47323.0,0.27052734]
[1633086951060,0.0244,47324.0,47323.0,0.29752734]
[1633086951261,0.0244,47324.0,47323.0,0.57546683]
[1633086952057,0.0244,47324.0,47323.0,0.79994304]
[1633086952458,0.0004,47324.0,47323.0,0.77294304]
[1633086952662,0.0004,47324.0,47323.0,0.54974304]
[1633086953059,0.0014,47324.0,47323.0,0.80894304]
[1633086954457,0.0004,47324.0,47323.0,0.49500355]
[1633086954659,0.0006,47325.0,47324.0,1.2008]
[1633086954859,0.0006,47325.0,47324.0,0.49703818]
[1633086956260,0.0006,47325.0,47324.0,0.79183974]
[1633086956460,0.0002,47325.0,47324.0,0.79183974]
[1633086956862,0.0006,47327.0,47325.0,1.719634]
[1633086957163,0.0002,47331.0,47327.0,1.52147166]
[1633086957364,0.00873634,47334.0,47331.0,1.05]
[1633086957562,0.00873634,47334.0,47333.0,0.00674098]
[1633086957760,0.00873634,47334.0,47333.0,0.11624648]
[1633086957961,0.00886913,47334.0,47333.0,0.07728098]
[1633086958365,0.00886913,47334.0,47333.0,0.30048098]
[1633086958566,0.0004,47341.0,47333.0,0.52011498]
[1633086958761,4.01383795,47342.0,47337.0,0.00122657]
[1633086958963,4.01383795,47342.0,47338.0,0.10906859]
[1633086959161,4.01383795,47342.0,47339.0,0.05194]
[1633086959964,4.01383795,47342.0,47339.0,0.387365]
[1633086960162,4.01383795,47342.0,47340.0,0.23344659]
[1633086960362,4.01383795,47342.0,47341.0,0.12312013]
[1633086960563,4.01383795,47342.0,47341.0,0.12433188]
[1633086960962,4.01383795,47342.0,47341.0,0.68293788]
[1633086961165,4.01683795,47342.0,47341.0,1.02341322]
[1633086962364,4.01683795,47342.0,47341.0,0.99241322]
[1633086962563,4.01383795,47342.0,47341.0,0.99241322]
[1633086962966,0.0004,47347.0,47342.0,0.97135944]
[1633086963167,0.0008,47359.0,47349.0,0.40096191]
[1633086963362,0.0008,47359.0,47349.0,0.80507408]
[1633086963563,0.0008,47359.0,47349.0,0.81101732]
[1633086963767,0.0008,47359.0,47349.0,0.4787271]
[1633086964168,0.09915024,47359.0,47349.0,0.4787271]
[1633086964365,0.09915024,47359.0,47349.0,0.7019271]
[1633086964966,0.07391431,47357.0,47349.0,0.7019271]
[1633086965164,0.07391431,47357.0,47349.0,0.7409271]
[1633086965564,0.0006,47357.0,47349.0,0.7409271]
[1633086965971,0.0004,47350.0,47349.0,0.7409271]
[1633086966366,0.0004,47350.0,47349.0,0.7019271]
[1633086966566,2.12416191,47348.0,47347.0,0.12399063]
[1633086966765,0.18748795,47346.0,47342.0,0.75076544]
[1633086966965,0.36752176,47345.0,47342.0,0.75076544]
[1633086967165,0.0186,47344.0,47342.0,0.75076544]
[1633086967366,0.0186,47344.0,47336.0,0.1998]
[1633086967367,0.23104432,47342.0,47336.0,0.1998]
[1633086967566,0.41908211,47341.0,47338.0,0.17572602]
[1633086967769,0.00124157,47339.0,47338.0,0.17572602]
[1633086967966,0.01990192,47339.0,47338.0,0.17572602]
[1633086968167,0.01866035,47339.0,47338.0,0.17572602]
[1633086969167,0.04166035,47339.0,47338.0,0.031]
[1633086969365,1.10121402,47339.0,47338.0,0.031]
[1633086969565,0.32426349,47339.0,47338.0,0.031]
[1633086969867,0.76545649,47339.0,47338.0,0.031]
[1633086970065,0.76545649,47339.0,47336.0,0.1998]
[1633086970066,0.98988134,47339.0,47336.0,0.1998]
[1633086970266,0.0186,47339.0,47336.0,0.1998]
[1633086971068,0.09939597,47332.0,47327.0,0.015]
[1633086971270,0.20178641,47330.0,47327.0,0.015]
[1633086971470,0.03666176,47330.0,47327.0,0.015]
[1633086971870,0.0186,47330.0,47327.0,0.015]
[1633086972668,0.31708322,47331.0,47327.0,0.015]
[1633086972866,0.24119142,47330.0,47327.0,0.015]
[1633086973067,0.025,47330.0,47327.0,0.043]
[1633086973670,0.58809583,47340.0,47327.0,0.04306]
[1633086973671,0.38619333,47338.0,47327.0,0.04306]
[1633086973867,0.0186,47337.0,47327.0,0.04306]
[1633086974077,0.0186,47337.0,47331.0,7.243e-05]
[1633086974078,0.22533509,47335.0,47331.0,7.243e-05]
[1633086974272,0.35516546,47334.0,47331.0,7.243e-05]
[1633086974471,0.12055014,47334.0,47331.0,7.243e-05]
[1633086974670,0.0186,47334.0,47331.0,7.243e-05]
[1633086975068,0.0396,47334.0,47331.0,0.01907243]
[1633086975670,0.08938358,47333.0,47331.0,0.01407243]
[1633086975869,0.24745997,47332.0,47331.0,0.01407243]
[1633086976471,0.24745997,47332.0,47327.0,0.01406]
[1633086977068,0.24745997,47332.0,47331.0,0.00128209]
[1633086977069,0.27245997,47332.0,47331.0,0.00128209]
[1633086978070,0.35139643,47332.0,47331.0,6e-05]
[1633086978270,0.57459643,47332.0,47331.0,6e-05]
[1633086978472,1.80097231,47332.0,47331.0,6e-05]
[1633086978671,0.66733381,47332.0,47331.0,6e-05]
[1633086979071,0.66733381,47332.0,47331.0,0.02306]
[1633086979275,1.01229881,47332.0,47331.0,0.02306]
[1633086980671,0.91316143,47332.0,47331.0,0.02306]
[1633086980875,0.0466,47332.0,47331.0,0.02306]
[1633086981072,0.21130949,47335.0,47331.0,0.02306]
[1633086981073,0.211339,47336.0,47331.0,6e-05]
[1633086981275,0.022,47332.0,47331.0,0.02506]
[1633086981673,0.338973,47332.0,47331.0,0.02506]
[1633086981876,0.67643623,47332.0,47331.0,0.02506]
[1633086982077,0.89963623,47332.0,47331.0,0.02506]
[1633086982475,0.89963623,47332.0,47331.0,6e-05]
[1633086982476,1.23119798,47332.0,47331.0,6e-05]
[1633086982677,1.33166011,47332.0,47331.0,6e-05]
[1633086983078,1.01468711,47332.0,47331.0,6e-05]
[1633086983277,0.94522498,47332.0,47331.0,0.01906]
[1633086984483,1.00623232,47332.0,47331.0,6e-05]
[1633086984886,0.65267057,47332.0,47331.0,6e-05]
[1633086985082,0.33746323,47332.0,47331.0,6e-05]
[1633086985281,0.36846323,47332.0,47331.0,0.01906]
[1633086986482,0.33746323,47332.0,47331.0,6e-05]
[1633086987285,0.37046323,47332.0,47331.0,0.01806]
[1633086987686,0.59366323,47332.0,47331.0,0.01806]
[1633086987883,0.69337221,47332.0,47331.0,0.01806]
[1633086988283,2.09337221,47332.0,47331.0,0.01806]
[1633086988483,0.66197221,47332.0,47331.0,0.01806]
[1633086988685,1.817016,47328.0,47327.0,0.014]
[1633086988887,1.84815176,47328.0,47327.0,0.014]
[1633086989084,2.07135176,47328.0,47327.0,0.014]
[1633086989288,0.009,47327.0,47323.0,0.01019707]
[1633086989488,0.009,47327.0,47323.0,7.07e-06]
[1633086989489,0.0186,47326.0,47323.0,7.07e-06]
[1633086989691,0.00123344,47324.0,47323.0,7.07e-06]
[1633086989941,0.01983344,47324.0,47323.0,7.07e-06]
[1633086990144,0.24303344,47324.0,47323.0,0.00010367]
[1633086990340,0.87333415,47324.0,47323.0,0.00010367]
[1633086990541,0.86765593,47324.0,47323.0,0.00010367]
[1633086990843,0.5593646,47324.0,47323.0,0.00010367]
[1633086991041,0.00123344,47324.0,47323.0,0.00010367]
[1633086991242,0.00123344,47324.0,47323.0,0.01810367]
[1633086991243,0.03323344,47324.0,47323.0,0.01810367]
[1633086991445,0.032,47324.0,47323.0,0.01810367]
[1633086991841,0.32310125,47330.0,47323.0,0.01810367]
[1633086992041,0.09408456,47327.0,47323.0,0.01810367]
[1633086992244,0.03666,47331.0,47326.0,6.038e-05]
[1633086992442,0.0992291,47330.0,47326.0,6.038e-05]
[1633086992641,0.01806,47331.0,47326.0,6.038e-05]
[1633086993244,0.2232,47329.0,47326.0,0.02006038]
[1633086993446,0.03398485,47329.0,47326.0,0.02006038]
[1633086993646,0.09336518,47327.0,47326.0,0.02006038]
[1633086993843,0.09336518,47327.0,47326.0,0.01996038]
[1633086993844,0.46104373,47327.0,47326.0,0.01996038]
[1633086994043,0.69729983,47327.0,47326.0,0.01996038]
[1633086994244,0.60033952,47327.0,47326.0,0.01996038]
[1633086994452,0.69340226,47327.0,47323.0,7.07e-06]
[1633086994646,0.41007774,47327.0,47323.0,7.07e-06]
[1633086994846,0.09306274,47327.0,47323.0,7.07e-06]
[1633086995045,0.10427417,47326.0,47323.0,7.07e-06]
[1633086995245,0.09362264,47326.0,47323.0,0.01000707]
[1633086995644,0.08907957,47324.0,47323.0,0.01000707]
[1633086995843,0.59538988,47324.0,47323.0,0.01000707]
[1633086996044,0.30719804,47324.0,47323.0,0.01000707]
[1633086996246,0.103249,47325.0,47323.0,0.01000707]
[1633086996446,0.211336,47327.0,47323.0,7.07e-06]
[1633086996645,0.30439808,47327.0,47323.0,7.07e-06]
[1633086996844,0.211336,47327.0,47323.0,7.07e-06]
[1633086997045,0.24996948,47322.0,47319.0,0.22736924]
[1633086997246,0.33040826,47327.0,47319.0,0.22736924]
[1633086997449,0.09750034,47326.0,47321.0,6.037e-05]
[1633086997644,0.33390687,47323.0,47321.0,6.037e-05]
[1633086997845,0.33040826,47327.0,47321.0,6.037e-05]
[1633086998444,0.10299594,47326.0,47321.0,6.037e-05]
[1633086998645,0.30303756,47326.0,47322.0,0.00125073]
[1633086998857,0.30303756,47326.0,47321.0,6.037e-05]
[1633086999048,0.33152341,47324.0,47321.0,6.037e-05]
[1633086999248,0.33152341,47324.0,47322.0,0.03]
[1633086999647,0.09547877,47323.0,47322.0,0.26299457]
[1633086999844,0.23204162,47326.0,47322.0,0.26299457]
[1633086999845,0.027,47326.0,47322.0,0.26299457]
[1633087000049,0.12310904,47326.0,47322.0,0.26299457]
[1633087000247,0.12310904,47326.0,47325.0,0.00123605]
[1633087000647,0.36978664,47326.0,47321.0,0.06119687]
[1633087001249,0.36978664,47326.0,47321.0,0.09519687]
[1633087001447,0.09610904,47326.0,47324.0,0.18301078]
[1633087001648,0.10218606,47325.0,47321.0,0.09519687]
[1633087001848,0.317006,47327.0,47321.0,0.03406037]
[1633087002048,0.0987493,47327.0,47321.0,0.03406037]
[1633087002249,0.21133,47326.0,47321.0,0.03406037]
[1633087002449,0.01806,47331.0,47321.0,0.27692431]
[1633087002650,0.10550374,47330.0,47321.0,0.33806222]
[1633087002849,0.10550374,47330.0,47321.0,0.65503022]
[1633087003255,0.18372764,47330.0,47321.0,0.68703022]
[1633087003453,0.46055932,47327.0,47322.0,0.17967417]
[1633087003650,0.211319,47327.0,47322.0,0.17967417]
[1633087003852,0.09659729,47330.0,47324.0,0.00127393]
[1633087004052,0.09659729,47330.0,47322.0,0.51970845]
[1633087004254,0.09659729,47330.0,47322.0,0.51456844]
[1633087004654,0.09259729,47330.0,47326.0,0.00127693]
[1633087004956,0.01806,47331.0,47326.0,0.00127693]
[1633087005157,0.01806,47331.0,47327.0,0.35506191]
[1633087005357,0.009,47330.0,47326.0,0.32401644]
[1633087005556,0.10714798,47330.0,47326.0,0.03]
[1633087005957,0.10714798,47330.0,47326.0,0.30915949]
[1633087006156,0.10714798,47330.0,47328.0,0.00121847]
[1633087006157,0.009,47330.0,47328.0,0.00121847]
[1633087006357,0.009,47330.0,47328.0,0.3562755]
[1633087006558,0.009,47330.0,47329.0,0.79315497]
[1633087006761,0.01806,47331.0,47329.0,0.85427588]
[1633087006958,0.01806,47331.0,47329.0,0.34074053]
[1633087007360,0.02806,47331.0,47330.0,0.35502201]
[1633087007559,0.02806,47331.0,47329.0,0.09012079]
[1633087007760,0.02806,47331.0,47329.0,0.029]
[1633087007960,0.09562186,47330.0,47329.0,0.029]
[1633087008362,0.02806,47331.0,47329.0,0.029]
[1633087008761,0.01806,47331.0,47327.0,0.27224961]
[1633087008963,0.01806,47331.0,47326.0,0.05411532]
[1633087009176,0.10404208,47330.0,47329.0,0.00126551]
[1633087009564,0.02706,47331.0,47330.0,0.23315811]
[1633087009762,0.02706,47331.0,47330.0,0.55007811]
[1633087010162,0.02706,47331.0,47330.0,0.77327811]
[1633087010365,0.02706,47331.0,47330.0,0.77454235]
[1633087010564,0.02706,47331.0,47330.0,0.55134235]
[1633087010765,0.01806,47331.0,47330.0,0.55134235]
[1633087011165,0.55792509,47337.0,47336.0,0.02675398]
[1633087011368,0.25072292,47337.0,47336.0,0.02675398]
[1633087011566,0.34999707,47337.0,47336.0,0.02675398]
[1633087011764,0.00136301,47337.0,47336.0,0.02675398]
[1633087012165,0.211272,47338.0,47336.0,0.02675398]
[1633087012166,0.20763501,47338.0,47336.0,0.02675398]
[1633087012365,0.20763501,47338.0,47336.0,0.03675398]
[1633087012366,0.31154686,47338.0,47336.0,0.03675398]
[1633087012970,0.53790432,47338.0,47336.0,0.03675398]
[1633087013166,0.53790432,47338.0,47336.0,0.03175398]
[1633087013367,0.55490432,47338.0,47336.0,0.05475398]
[1633087013967,0.32854686,47338.0,47336.0,0.05475398]
[1633087014167,0.32854686,47338.0,47337.0,0.26931791]
[1633087014369,0.32854686,47338.0,47337.0,0.27218693]
[1633087014568,0.31154686,47338.0,47337.0,0.27233888]
[1633087014770,0.10551362,47345.0,47344.0,0.3176]
[1633087014970,0.3004,47350.0,47344.0,0.67418966]
[1633087015170,0.3004,47350.0,47349.0,0.31802004]
[1633087015372,0.3004,47350.0,47349.0,0.63824635]
[1633087015570,0.30055689,47350.0,47349.0,0.63824635]
[1633087015767,0.11692828,47350.0,47349.0,0.63824635]
[1633087015969,0.11692828,47350.0,47349.0,0.86144635]
[1633087016169,0.11692828,47350.0,47349.0,0.63824635]
[1633087016971,0.11692828,47350.0,47349.0,0.86144635]
[1633087017172,0.11692828,47350.0,47349.0,0.76143074]
[1633087017370,0.11692828,47350.0,47349.0,0.80143074]
[1633087018172,0.11692828,47350.0,47349.0,1.02463074]
[1633087018369,0.11692828,47350.0,47349.0,0.35802004]
[1633087018671,0.11692828,47350.0,47344.0,0.3176]
[1633087018870,0.21298725,47350.0,47344.0,0.3176]
[1633087019070,9.655e-05,47345.0,47344.0,0.3176]
[1633087019274,9.655e-05,47345.0,47344.0,0.99271428]
[1633087019470,9.655e-05,47345.0,47344.0,1.5215482]
[1633087019669,9.655e-05,47345.0,47344.0,1.22306111]
[1633087020070,0.11677139,47350.0,47344.0,1.25306111]
[1633087020269,0.11677139,47350.0,47349.0,0.00121302]
[1633087020469,0.11677139,47350.0,47349.0,0.31794602]
[1633087020669,0.11683173,47350.0,47349.0,0.31794602]
[1633087020872,0.11683173,47350.0,47349.0,0.60462395]
[1633087021070,0.11683173,47350.0,47349.0,0.6980594]
[1633087021270,0.11683173,47350.0,47349.0,0.7370594]
[1633087021471,0.11683173,47350.0,47349.0,0.9602594]
[1633087021672,0.11683173,47350.0,47349.0,0.9902594]
[1633087021871,0.11683173,47350.0,47349.0,0.70358147]
[1633087022072,4.55991147,47352.0,47350.0,1.4]
[1633087022273,0.0006,47353.0,47352.0,2.4809211]
[1633087022473,0.0006,47353.0,47352.0,4.06457713]
[1633087022675,0.0006,47359.0,47356.0,0.219634]
[1633087022875,0.0006,47359.0,47358.0,1.42089486]
[1633087023078,0.0006,47359.0,47358.0,0.26949486]
[1633087023274,0.0006,47359.0,47358.0,0.57876278]
[1633087023477,0.0006,47359.0,47358.0,1.21231278]
[1633087023675,0.0002294,47360.0,47359.0,0.219634]
[1633087023875,0.0002294,47360.0,47359.0,0.262534]
[1633087024074,0.00035006,47360.0,47359.0,0.262534]
[1633087024281,0.00035006,47360.0,47359.0,0.37497044]
[1633087024474,0.00035006,47360.0,47359.0,0.26497044]
[1633087024675,0.0008,47361.0,47360.0,0.7]
[1633087024976,0.0008,47361.0,47360.0,1.39044388]
[1633087025175,0.0008,47361.0,47360.0,0.26944388]
[1633087025375,0.0008,47361.0,47360.0,0.28044388]
[1633087025576,0.0008,47361.0,47360.0,0.279234]
[1633087025775,0.0008,47361.0,47360.0,0.48503511]
[1633087026376,0.0008,47361.0,47360.0,0.26153511]
[1633087026575,0.0008,47361.0,47360.0,0.22053511]
[1633087026975,0.0008,47361.0,47360.0,0.47373511]
[1633087027177,0.0008,47361.0,47360.0,0.219334]
[1633087027379,0.0008,47361.0,47360.0,0.266334]
[1633087027577,0.0008,47361.0,47360.0,0.26755054]
[1633087027976,0.0008,47361.0,47360.0,0.49075054]
[1633087028177,0.0008,47361.0,47360.0,0.26755054]
[1633087028378,0.0008,47361.0,47360.0,0.55339875]
[1633087028577,0.0008,47361.0,47360.0,0.53639875]
[1633087028843,0.0004,47361.0,47360.0,0.53639875]
[1633087028978,0.000326,47362.0,47361.0,0.219474]
[1633087029178,0.000326,47362.0,47361.0,0.21639431]
[1633087029379,0.001,47365.0,47362.0,0.219474]
[1633087029380,0.0006,47364.0,47362.0,0.219474]
[1633087029577,0.0006,47364.0,47363.0,0.22070767]
[1633087029976,0.0006,47364.0,47363.0,0.20998867]
[1633087030380,0.0006,47364.0,47363.0,0.208751]
[1633087031380,0.0006,47364.0,47363.0,0.252751]
[1633087031979,0.0006,47364.0,47363.0,0.54857358]
[1633087032178,0.0006,47364.0,47363.0,0.252751]
[1633087032582,0.00602591,47367.0,47363.0,0.252751]
[1633087032780,0.00602591,47367.0,47363.0,0.208751]
[1633087032982,0.11989381,47364.0,47363.0,0.208751]
[1633087033185,0.00602591,47367.0,47363.0,0.208751]
[1633087033386,0.00602591,47367.0,47365.0,0.19875866]
[1633087033583,0.00602591,47367.0,47366.0,0.21947]
[1633087034184,0.00602591,47367.0,47364.0,0.316661]
[1633087034380,0.00602591,47367.0,47365.0,0.21945]
[1633087034581,0.19690899,47366.0,47365.0,0.21945]
[1633087034837,0.19690899,47366.0,47364.0,0.316661]
[1633087035180,6.032e-05,47365.0,47364.0,0.316661]
[1633087035387,6.032e-05,47365.0,47364.0,0.360661]
[1633087035580,6.032e-05,47365.0,47364.0,0.580111]
[1633087035781,0.01340418,47366.0,47365.0,0.21945]
[1633087035980,0.00602591,47367.0,47365.0,0.20945]
[1633087036384,0.28748707,47366.0,47365.0,0.20945]
[1633087036785,0.28748707,47366.0,47364.0,0.044]
[1633087036786,0.31980607,47366.0,47364.0,0.044]
[1633087036984,0.35,47364.0,47359.0,0.50787097]
[1633087037183,0.21123279,47365.0,47359.0,0.51496531]
[1633087037384,0.21123279,47365.0,47364.0,0.044]
[1633087037787,0.5171368,47367.0,47364.0,0.044]
[1633087038184,0.00602591,47367.0,47365.0,0.29004507]
[1633087038384,0.00602591,47367.0,47365.0,0.28471492]
[1633087038587,0.00602591,47367.0,47365.0,0.00638949]
[1633087038784,0.20592046,47367.0,47365.0,0.00638949]
[1633087038984,0.00602591,47367.0,47365.0,0.00638949]
[1633087039186,0.00602591,47367.0,47366.0,0.0012155]
[1633087039385,0.00602591,47367.0,47366.0,0.22568063]